bitfinex/quotes_ETHUSD_20260219
["timestamp","ask_amount","ask_price","bid_price","bid_amount"]
[1771524316238,3.87721367,1923.8,1923.1,1.30097613]
[1771524316536,1.87721367,1923.8,1923.1,1.30097613]
[1771524316722,1.87721367,1923.7,1923.1,1.30096822]
[1771524318330,1.87721367,1923.7,1923.1,0.001]
[1771524320438,3.17680472,1923.7,1923.1,0.001]
[1771524320633,1.87721367,1923.7,1923.1,0.001]
[1771524320830,5.19727378,1924.1,1923.1,0.001]
[1771524320831,1.87721367,1924.0,1923.1,1.9046748]
[1771524321219,0.0011,1923.7,1923.1,1.9046748]
[1771524322843,0.0011,1923.7,1923.2,1.2999168]
[1771524323141,0.0011,1923.7,1923.3,1.9036748]
[1771524325318,0.0011,1923.7,1923.3,1.29980859]
[1771524327163,0.0011,1923.7,1923.2,1.29986263]
[1771524327715,1.87831367,1923.7,1923.1,1.30094593]
[1771524329340,0.0011,1923.7,1923.1,3.20462073]
[1771524330424,0.0011,1923.7,1923.1,3.20465443]
[1771524330618,0.0011,1923.7,1923.1,1.30097963]
[1771524330619,1.87831367,1923.7,1923.1,1.30097963]
[1771524332184,1.87831367,1923.7,1923.1,1.9046748]
[1771524334275,1.87831367,1923.7,1923.2,1.3009168]
[1771524335475,0.0011,1923.7,1923.3,1.9036748]
[1771524336281,0.0011,1923.7,1923.4,3.20345643]
[1771524336790,0.0011,1923.8,1923.5,1.82603762]
[1771524338402,1.94318512,1923.8,1923.3,2.23679788]
[1771524339261,1.94318512,1923.8,1923.3,0.937]
[1771524339758,1.94318512,1923.8,1923.3,2.23684585]
[1771524340764,0.0011,1923.8,1923.3,2.23684585]
[1771524340959,0.0011,1923.8,1923.4,1.82603762]
[1771524341760,0.0011,1923.8,1923.3,2.23684585]
[1771524343960,1.94318512,1923.8,1923.3,2.23684585]
[1771524344862,1.94208512,1923.7,1923.3,2.23683722]
[1771524345603,1.94208512,1923.7,1923.3,0.937]
[1771524346101,1.94208512,1923.7,1923.3,2.23684502]
[1771524346803,1.94208512,1923.7,1923.3,1.29984502]
[1771524346979,1.94208512,1923.7,1923.2,0.001]
[1771524347182,0.0011,1923.8,1923.2,1.82703762]
[1771524348811,0.0011,1924.0,1923.3,1.82703762]
[1771524349168,0.0011,1923.6,1923.5,1.82603762]
[1771524349372,0.0011,1923.7,1923.5,1.82603762]
[1771524351505,0.0011,1923.7,1923.6,1.29964649]
[1771524357290,0.0011,1923.7,1923.6,3.12568411]
[1771524357688,0.0011,1923.9,1923.7,1.82603762]
[1771524358015,0.0011,1924.0,1923.7,1.82603762]
[1771524359916,0.0011,1924.2,1924.1,1.82603762]
[1771524360285,0.0011,1924.2,1923.8,1.29951138]
[1771524360794,0.0011,1924.2,1923.8,3.125549]
[1771524361192,0.0011,1924.2,1923.7,1.29953091]
[1771524361409,1.92720359,1924.2,1923.7,1.29953091]
[1771524362509,0.0011,1924.2,1923.7,3.09675249]
[1771524363707,0.0011,1924.1,1923.7,3.09675249]
[1771524364425,0.0011,1924.1,1923.8,1.79722158]
[1771524364601,0.0011,1924.1,1923.7,1.29953091]
[1771524364913,0.0011,1924.1,1923.7,3.09675249]
[1771524366113,0.0011,1924.1,1923.7,1.29953091]
[1771524366294,0.0011,1924.1,1923.6,5.19931574]
[1771524366295,1.92720359,1924.1,1923.6,1.30064227]
[1771524366500,1.92720359,1924.1,1923.6,1.3006463]
[1771524367413,1.92720359,1924.1,1923.6,1.30064122]
[1771524370105,0.0011,1924.2,1923.7,1.77021577]
[1771524370305,0.0011,1924.2,1923.9,1.77021577]
[1771524370615,0.0011,1924.4,1923.9,1.77021577]
[1771524371191,5.19464661,1925.1,1924.1,1.93866174]
[1771524371192,1.2986626,1925.1,1924.1,1.93866174]
[1771524371920,0.05457223,1925.0,1924.1,1.93866174]
[1771524372534,0.05457223,1925.0,1924.3,1.93866174]
[1771524372720,1.35328051,1925.0,1924.3,1.93866174]
[1771524374901,1.35328051,1925.0,1924.4,3.23776795]
[1771524375103,1.35327401,1925.0,1924.4,3.23776795]
[1771524376730,0.0011,1924.9,1924.5,1.93866174]
[1771524376911,0.0011,1924.9,1924.5,3.23770045]
[1771524377230,0.0011,1924.9,1924.4,5.19627594]
[1771524377438,0.0011,1924.9,1924.5,1.93866174]
[1771524378034,0.08500116,1924.9,1924.3,1.93866174]
[1771524378197,0.08500116,1924.9,1924.2,1.29923744]
[1771524378525,0.08500116,1924.9,1924.2,3.23789918]
[1771524378722,0.08500116,1924.9,1924.3,1.93866174]
[1771524380634,1.38378652,1924.9,1924.4,1.29910621]
[1771524380837,1.38378652,1924.9,1924.3,3.23783546]
[1771524381307,1.38378652,1924.9,1924.3,1.93866174]
[1771524381819,0.08093827,1924.8,1924.3,1.93866174]
[1771524382126,0.08093827,1924.8,1924.1,1.93866174]
[1771524382734,1.37787716,1924.7,1924.1,3.23793442]
[1771524383032,0.07897344,1924.7,1924.2,1.93866174]
[1771524383702,2.0,1924.6,1924.0,3.2380305]
[1771524383916,0.07796926,1924.5,1923.9,1.29941403]
[1771524384737,0.07796926,1924.5,1923.9,3.23807577]
[1771524385136,1.37704469,1924.5,1923.9,3.23807577]
[1771524385523,0.07796926,1924.5,1923.9,3.23807577]
[1771524385949,1.37493505,1924.7,1924.0,1.93866174]
[1771524386153,0.0011,1924.9,1924.0,1.93866174]
[1771524386452,0.07597774,1924.8,1924.0,1.93866174]
[1771524387027,0.07597774,1924.8,1924.2,1.93866174]
[1771524387231,0.0011,1924.9,1924.2,1.93866174]
[1771524387433,1.29988784,1924.9,1924.2,1.93866174]
[1771524387652,0.0011,1924.9,1924.2,1.93866174]
[1771524388956,1.29987748,1924.9,1924.2,1.93866174]
[1771524389157,0.07402468,1924.9,1924.3,3.23783546]
[1771524389666,0.07402468,1924.9,1924.3,1.93866174]
[1771524390444,0.07402468,1924.9,1924.3,0.001]
[1771524390831,0.07402468,1924.9,1924.3,1.93966174]
[1771524391232,0.0011,1924.8,1924.4,3.23776795]
[1771524392356,0.07091101,1924.8,1924.3,0.001]
[1771524392531,0.07091101,1924.8,1924.3,1.30016927]
[1771524393065,0.07091101,1924.8,1924.3,0.001]
[1771524393241,1.36975641,1924.8,1924.3,1.30017244]
[1771524393966,1.36975641,1924.8,1924.3,0.001]
[1771524394134,0.06772057,1924.7,1924.3,0.001]
[1771524394758,0.06772057,1924.7,1924.0,2.87466174]
[1771524394935,0.06772057,1924.7,1924.0,4.17401783]
[1771524395134,0.06772057,1924.7,1924.0,2.87466174]
[1771524395336,1.36463844,1924.6,1924.0,2.87466174]
[1771524395537,1.36463844,1924.6,1924.0,4.17403305]
[1771524395839,0.06466835,1924.5,1924.0,4.17403]
[1771524396162,0.06466835,1924.5,1924.0,2.87466174]
[1771524396947,0.06466835,1924.5,1924.0,4.17452985]
[1771524397265,1.29897121,1924.6,1924.1,1.93916174]
[1771524397436,0.0011,1924.8,1924.3,1.93916174]
[1771524397866,1.36315377,1924.8,1924.3,1.93916174]
[1771524398062,1.36315377,1924.8,1924.1,3.2384705]
[1771524398349,0.0011,1924.8,1924.2,1.93916174]
[1771524399777,0.0011,1924.8,1924.3,1.29917372]
[1771524399980,0.0011,1924.8,1924.4,1.93916174]
[1771524400865,0.0011,1924.9,1924.4,1.93861174]
[1771524401860,0.0011,1924.9,1924.6,1.93861174]
[1771524404384,0.0011,1924.9,1924.8,1.93861174]
[1771524405789,5.19238729,1925.9,1924.8,1.93861174]
[1771524405790,0.05675527,1925.8,1924.8,1.93861174]
[1771524405989,0.05564505,1926.1,1925.1,1.93861174]
[1771524406294,0.05564505,1925.9,1925.2,1.29856638]
[1771524406504,0.05564505,1925.9,1925.2,3.23717812]
[1771524407004,0.05564505,1925.9,1925.2,1.93861174]
[1771524407993,9.69609373,1926.2,1925.2,1.93861174]
[1771524408195,9.146923,1926.1,1925.2,1.93861174]
[1771524408499,1.29797765,1926.1,1925.4,1.93861174]
[1771524409498,1.40932276,1926.2,1925.4,1.93861174]
[1771524409794,2.026952,1926.1,1925.4,1.93861174]
[1771524410008,2.13580863,1926.1,1925.4,1.93861174]
[1771524410177,0.10885663,1926.1,1925.4,1.93861174]
[1771524410496,1.29802699,1926.0,1925.5,1.29836406]
[1771524410699,1.29802699,1926.0,1925.1,5.19399574]
[1771524410700,0.10885663,1925.9,1925.1,1.93861174]
[1771524411271,1.29802699,1926.0,1925.1,1.93861174]
[1771524411476,1.40562099,1926.0,1925.1,1.93861174]
[1771524411670,0.107594,1925.9,1925.1,1.93861174]
[1771524411874,1.29802699,1926.0,1925.1,1.93861174]
[1771524412369,1.4041231,1926.4,1925.2,1.93861174]
[1771524412570,0.10632875,1926.3,1925.3,1.93861174]
[1771524412769,1.29779435,1926.4,1925.3,1.93861174]
[1771524412770,0.10507412,1926.0,1925.3,1.93861174]
[1771524413395,0.10507412,1926.2,1925.3,1.93861174]
[1771524414503,0.10507412,1926.2,1925.3,3.23710858]
[1771524414504,1.40176211,1926.1,1925.3,3.23710858]
[1771524414704,0.10380251,1926.0,1925.3,3.23710884]
[1771524415403,0.10380251,1926.0,1925.3,1.93861174]
[1771524415606,0.10380251,1926.0,1925.3,3.23710761]
[1771524415802,0.10380251,1926.0,1925.4,1.93861174]
[1771524416676,1.29782484,1926.3,1925.5,1.93861174]
[1771524417102,0.09999404,1926.2,1925.5,1.93861174]
[1771524418589,1.2979596,1926.1,1925.5,1.93861174]
[1771524418794,1.2979596,1926.1,1925.5,3.2369254]
[1771524418996,1.39540325,1926.1,1925.5,1.93961174]
[1771524419205,0.09744365,1926.0,1925.5,0.001]
[1771524420208,0.09744365,1926.0,1925.5,1.29935704]
[1771524420410,1.2990596,1926.1,1925.5,1.29935704]
[1771524420616,0.0011,1926.1,1925.8,1.93861174]
[1771524421191,0.09647212,1926.1,1925.5,0.001]
[1771524421729,0.09647212,1926.1,1925.5,1.29936008]
[1771524422390,0.09647212,1926.1,1925.5,3.23797182]
[1771524423401,1.29802699,1926.0,1925.5,3.23797182]
[1771524423719,0.0011,1926.1,1925.6,1.93861174]
[1771524424014,1.29907345,1926.1,1925.5,3.23797182]
[1771524424186,1.2990646,1926.1,1925.5,3.23797182]
[1771524425014,1.2990646,1926.1,1925.6,1.93861174]
[1771524425934,1.2990646,1926.1,1925.6,3.23688947]
[1771524427306,1.38709525,1926.1,1925.6,1.93861174]
[1771524427503,0.08803065,1926.0,1925.5,0.001]
[1771524427695,0.08803065,1926.0,1925.1,1.97060455]
[1771524427894,0.08803065,1926.0,1925.1,3.26923295]
[1771524428324,0.08803065,1926.0,1925.2,1.97060455]
[1771524428626,0.08572754,1925.8,1925.1,1.97060455]
[1771524429424,0.08447621,1925.9,1925.2,1.97060455]
[1771524430494,0.08426009,1926.1,1925.2,1.97060455]
[1771524430699,0.0011,1926.1,1925.2,1.97060455]
[1771524432241,0.0011,1926.1,1925.4,1.97060455]
[1771524433811,0.0011,1926.0,1925.4,1.97060455]
[1771524434460,0.0011,1926.0,1925.6,1.97060455]
[1771524435943,0.936,1926.4,1925.6,1.97060455]
[1771524436552,0.936,1926.4,1925.8,1.97060455]
[1771524436788,1.51866245,1926.7,1925.8,1.97060455]
[1771524437083,0.1446445,1926.7,1925.8,1.97060455]
[1771524437656,0.1446445,1926.7,1925.9,1.97060455]
[1771524438354,1.37067194,1927.8,1926.4,1.97060455]
[1771524438553,5.18762336,1927.7,1926.4,1.97060455]
[1771524438860,5.18762336,1927.7,1926.6,1.97060455]
[1771524439273,1.29688229,1927.7,1926.6,1.97060455]
[1771524439470,3.017796,1927.7,1926.6,1.97060455]
[1771524440282,0.07530358,1927.7,1926.6,1.97060455]
[1771524440464,0.07530358,1927.5,1926.6,1.97060455]
[1771524440977,1.3710641,1927.4,1926.6,3.26817251]
[1771524441183,1.3710641,1927.4,1926.7,1.97060455]
[1771524441560,27.783979,1927.7,1926.7,1.97060455]
[1771524441874,0.07264439,1927.7,1926.7,1.97060455]
[1771524442467,1.29681502,1927.8,1926.7,1.97060455]
[1771524442863,2.23279291,1927.9,1926.9,1.97060455]
[1771524443280,0.936,1927.9,1926.9,1.97060455]
[1771524443587,2.23277617,1927.9,1926.9,1.97060455]
[1771524443886,0.07132114,1927.7,1926.9,1.97060455]
[1771524444198,15.99694,1927.8,1926.9,1.97060455]
[1771524444355,7.33652,1927.7,1926.9,1.97060455]
[1771524444688,6.45422,1927.8,1926.9,1.97060455]
[1771524444896,1.365518,1927.7,1926.9,3.26800915]
[1771524445691,1.365518,1927.7,1927.0,1.97060455]
[1771524445994,2.23279432,1927.9,1927.0,1.97060455]
[1771524447292,2.23279432,1927.9,1927.1,3.26789062]
[1771524447463,16.981542,1927.7,1927.1,1.97060455]
[1771524447684,15.77011485,1927.7,1926.9,3.26797064]
[1771524447978,0.06593285,1927.7,1927.0,1.97060455]
[1771524448383,9.662561,1927.6,1927.0,1.97060455]
[1771524448560,9.316036,1927.6,1927.0,1.97060455]
[1771524448763,8.242561,1927.7,1927.0,1.97060455]
[1771524449094,0.0011,1927.8,1927.0,1.97060455]
[1771524450093,0.0011,1927.8,1927.1,3.26789062]
[1771524450402,11.743879,1927.7,1926.9,1.97060455]
[1771524450907,0.06057505,1927.6,1926.7,1.97060455]
[1771524451114,0.06057505,1927.5,1926.7,1.97060455]
[1771524451973,1.29701686,1927.5,1926.7,1.97060455]
[1771524452278,1.29701686,1927.5,1926.8,1.97060455]
[1771524454164,5.18806744,1927.6,1926.9,3.26802527]
[1771524456304,1.29693914,1927.7,1927.0,1.97060455]
[1771524456526,1.29795179,1927.8,1927.0,1.97060455]
[1771524457787,1.34950905,1927.8,1927.0,1.97060455]
[1771524458282,1.34950905,1927.8,1927.1,3.23584781]
[1771524458687,1.29795179,1927.8,1927.2,1.93856174]
[1771524459791,0.0011,1927.8,1927.2,1.93856174]
[1771524460292,0.0011,1927.8,1927.4,1.93856174]
[1771524462395,0.04751613,1928.2,1927.2,1.29716617]
[1771524462396,0.94969515,1928.4,1927.3,2.87356174]
[1771524462594,0.935,1929.2,1927.9,1.93801174]
[1771524462803,1.34297638,1929.5,1928.1,1.93801174]
[1771524463257,13.064867,1929.3,1928.1,1.93801174]
[1771524463452,14.398529,1928.9,1928.1,1.93801174]
[1771524463735,2.0,1928.9,1928.1,1.93801174]
[1771524464038,3.971846,1929.2,1928.1,1.93801174]
[1771524464246,0.08192,1929.3,1928.1,1.93801174]
[1771524464541,0.07216313,1929.1,1928.3,1.93801174]
[1771524465301,12.68101024,1929.1,1928.3,1.93801174]
[1771524465501,0.07075124,1929.1,1928.3,1.93801174]
[1771524466313,1.29600829,1929.0,1928.3,1.93801174]
[1771524466523,1.29600829,1929.0,1928.3,3.23448553]
[1771524466725,8.942644,1928.9,1928.1,1.93801174]
[1771524468152,1.29596991,1929.1,1928.1,1.93801174]
[1771524468327,5.26521464,1929.3,1928.3,1.93801174]
[1771524468514,1.29587393,1929.2,1928.3,1.93801174]
[1771524470270,8.13435876,1929.1,1928.3,1.93801174]
[1771524470417,7.5856,1928.9,1928.3,1.93801174]
[1771524470621,6.5856,1928.9,1928.3,1.93801174]
[1771524470848,1.35976705,1929.0,1928.3,3.2344899]
[1771524471045,1.29590454,1929.2,1928.4,1.93801174]
[1771524471867,1.35820884,1929.3,1928.4,1.93801174]
[1771524472154,2.820522,1929.2,1928.4,1.93801174]
[1771524472475,17.769512,1929.3,1928.5,1.93801174]
[1771524472677,15.041061,1929.3,1928.5,1.93801174]
[1771524472980,3.815648,1929.3,1928.5,1.93801174]
[1771524473274,0.06094277,1929.4,1928.5,1.93801174]
[1771524473488,22.009,1929.4,1928.5,1.93801174]
[1771524473690,20.22058,1929.5,1928.5,1.93801174]
[1771524473849,0.0581302,1929.3,1928.5,1.93801174]
[1771524474463,1.29594111,1929.1,1928.6,1.93801174]
[1771524475351,0.2981021,1929.0,1928.2,1.8872397]
[1771524475576,22.624405,1928.9,1928.2,1.8872397]
[1771524475752,0.2981021,1928.9,1928.0,2.8222397]
[1771524476161,0.2981021,1928.9,1928.4,0.001]
[1771524476458,20.301144,1928.7,1928.0,2.8222397]
[1771524476757,18.583244,1928.7,1928.0,2.8222397]
[1771524477347,18.583244,1928.7,1928.1,1.8872397]
[1771524477348,6.493179,1928.7,1928.1,1.8872397]
[1771524477554,2.079878,1928.7,1928.1,1.8872397]
[1771524477755,1.29614267,1928.8,1928.1,1.8872397]
[1771524480585,18.061771,1928.7,1928.1,1.8872397]
[1771524480783,17.59386,1928.7,1928.1,1.8872397]
[1771524480970,13.063439,1928.7,1928.1,1.8872397]
[1771524481462,1.29627709,1928.6,1928.1,1.8872397]
[1771524481671,1.29627709,1928.6,1927.9,1.93562392]
[1771524481672,0.29646043,1928.5,1927.9,1.93562392]
[1771524481869,1.29627709,1928.6,1927.9,1.93562392]
[1771524482490,1.59315512,1928.6,1927.9,1.93562392]
[1771524483497,1.59315512,1928.6,1928.0,1.93562392]
[1771524483803,1.29627709,1928.6,1928.0,1.93562392]
[1771524484304,1.59067242,1928.6,1928.0,1.93562392]
[1771524484473,1.29627709,1928.6,1928.0,1.93562392]
[1771524486306,0.29190915,1928.6,1927.8,1.93562392]
[1771524487479,5.18510836,1928.7,1927.5,6.12191492]
[1771524487480,16.336716,1928.3,1927.5,1.91505707]
[1771524487678,1.77283749,1928.2,1927.5,1.91505707]
[1771524487879,1.77283749,1928.0,1927.3,1.91505707]
[1771524488417,17.98070349,1927.8,1927.0,1.91505707]
[1771524488708,1.77283749,1927.8,1926.8,1.91505707]
[1771524489425,1.77283749,1927.6,1926.8,1.91505707]
[1771524489839,1.77283749,1927.4,1926.7,0.935]
[1771524490137,16.377538,1927.5,1926.7,0.935]
[1771524490138,1.77283749,1927.2,1926.9,0.001]
[1771524490428,1.29728607,1927.1,1926.7,0.001]
[1771524491428,0.935,1927.5,1926.7,1.91605707]
[1771524492029,2.23202333,1927.5,1926.7,1.91605707]
[1771524492399,1.77283749,1927.4,1926.7,1.91605707]
[1771524492836,1.77283749,1927.4,1926.7,3.2135977]
[1771524493006,2.23202333,1927.5,1926.8,1.91505707]
[1771524493007,0.935,1927.5,1926.8,1.91505707]
[1771524494595,2.23206741,1927.5,1926.8,1.91505707]
[1771524494989,3.224786,1927.4,1926.7,0.001]
[1771524495193,1.77283749,1927.4,1926.7,0.001]
[1771524495992,15.938262,1927.3,1926.7,0.001]
[1771524496189,9.142131,1927.2,1926.7,0.001]
[1771524496425,8.517897,1927.2,1926.7,0.001]
[1771524496806,1.29728607,1927.1,1926.7,0.001]
[1771524497494,1.29727044,1927.2,1926.7,0.001]
[1771524499212,3.07010793,1927.2,1926.7,0.001]
[1771524501634,1.29717913,1927.3,1926.7,1.91605707]
[1771524502533,2.23203897,1927.5,1926.7,1.91605707]
[1771524502736,0.935,1927.5,1926.7,1.91605707]
[1771524503031,2.2320188,1927.5,1926.7,1.91605707]
[1771524503803,2.2320188,1927.5,1926.9,1.91505707]
[1771524506034,2.2320188,1927.5,1927.0,1.91505707]
[1771524506411,4.00485629,1927.5,1926.8,1.91505707]
[1771524506615,4.00485629,1927.5,1926.8,1.91605707]
[1771524506817,0.0011,1927.4,1926.8,1.91605707]
[1771524508241,0.0011,1927.4,1927.0,1.91505707]
[1771524509115,1.2968557,1927.8,1927.1,1.91505707]
[1771524509316,0.935,1928.2,1927.1,1.91505707]
[1771524509518,1.29666459,1928.1,1927.1,1.91505707]
[1771524510037,1.29658067,1928.2,1927.1,1.91505707]
[1771524510426,1.29658067,1928.2,1927.3,1.91505707]
[1771524510630,1.29650099,1928.3,1927.3,1.91505707]
[1771524510828,2.70783749,1928.5,1927.3,1.91505707]
[1771524510829,2.2313443,1928.5,1927.3,1.91505707]
[1771524511038,2.23135121,1928.5,1927.3,1.91505707]
[1771524511206,4.0041887,1928.5,1927.3,1.91505707]
[1771524511412,6.695307,1928.4,1927.3,1.91505707]
[1771524511660,4.699307,1928.4,1927.3,1.91505707]
[1771524511838,4.423307,1928.4,1927.3,1.91505707]
[1771524512011,2.23135121,1928.5,1927.3,1.91505707]
[1771524512408,2.23135121,1928.5,1927.5,1.91505707]
[1771524512640,2.23135121,1928.5,1927.2,1.91505707]
[1771524512641,8.92265204,1928.4,1927.2,1.91505707]
[1771524512844,2.23135121,1928.5,1927.2,1.91505707]
[1771524513144,2.23135121,1928.5,1927.3,1.91505707]
[1771524514312,0.935,1928.5,1927.4,1.91505707]
[1771524514533,1.77283749,1928.8,1927.5,1.91505707]
[1771524517249,1.77410863,1928.6,1927.7,1.91166376]
[1771524518953,1.29620988,1928.7,1927.7,1.91166376]
[1771524519186,4.268,1928.8,1927.9,1.91166376]
[1771524519526,1.77410863,1928.8,1927.9,1.91166376]
[1771524520556,0.0011,1928.7,1927.9,1.91166376]
[1771524521144,1.29730988,1928.7,1928.0,3.20834425]
[1771524522350,1.29730988,1928.7,1928.0,1.91166376]
[1771524522753,3.07141851,1928.7,1928.0,1.91166376]
[1771524523566,1.77410863,1928.5,1927.8,1.91166376]
[1771524523868,1.77410863,1928.5,1927.6,1.91166376]
[1771524525374,1.29641153,1928.4,1927.7,3.20854605]
[1771524525738,3.07052016,1928.4,1927.7,1.91166376]
[1771524526070,1.29641153,1928.4,1927.6,1.91166376]
[1771524526440,3.07052016,1928.4,1927.6,1.91166376]
[1771524526646,1.77410863,1928.3,1927.6,1.91166376]
[1771524527649,1.77410863,1928.3,1927.7,1.91166376]
[1771524527650,1.296546,1928.2,1927.7,1.91166376]
[1771524528335,3.07065463,1928.2,1927.4,1.91166376]
[1771524528541,1.77410863,1928.1,1927.4,1.91166376]
[1771524528742,2.693671,1928.0,1927.4,1.91166376]
[1771524529242,1.77410863,1928.1,1927.4,1.91166376]
[1771524530069,3.07078912,1928.0,1927.4,1.91166376]
[1771524531695,3.07078912,1928.0,1927.2,0.935]
[1771524531696,1.77410863,1927.9,1927.2,1.91166376]
[1771524531854,1.77410863,1927.9,1926.8,0.001]
[1771524531855,1.77410863,1927.7,1926.8,3.2101404]
[1771524532361,3.0710582,1927.6,1926.9,1.91166376]
[1771524532569,1.29694957,1927.6,1926.9,1.91166376]
[1771524533280,16.900736,1927.4,1926.8,0.001]
[1771524533470,1.77410863,1927.3,1926.8,0.001]
[1771524534358,1.29721876,1927.2,1926.8,0.001]
[1771524534681,5.1885133,1927.4,1926.8,1.91266376]
[1771524534984,1.29708415,1927.4,1926.8,1.91266376]
[1771524535153,1.29708415,1927.4,1927.2,0.001]
[1771524535492,13.632552,1927.3,1926.8,1.91266376]
[1771524535859,1.77410863,1927.3,1926.8,0.001]
[1771524536266,1.29721876,1927.2,1926.8,0.001]
[1771524536878,3.07132739,1927.2,1926.8,0.001]
[1771524537680,1.29721876,1927.2,1926.8,0.001]
[1771524538560,5.18887505,1927.3,1926.8,0.001]
[1771524538955,6.96298368,1927.3,1926.8,0.001]
[1771524539480,3.422048,1927.3,1926.8,1.91266376]
[1771524539683,1.77410863,1927.6,1926.8,1.91266376]
[1771524541508,1.29701686,1927.5,1926.9,1.90760402]
[1771524541669,1.75783044,1927.4,1926.8,0.001]
[1771524541868,1.75783044,1927.3,1926.8,0.001]
[1771524542073,3.0548473,1927.5,1926.9,1.90760402]
[1771524543292,1.29701686,1927.5,1926.9,1.90760402]
[1771524543489,1.29694957,1927.6,1927.1,1.90760402]
[1771524543692,9.52397725,1927.9,1927.1,1.90760402]
[1771524543693,5.18739239,1927.8,1927.1,1.90760402]
[1771524544002,1.75783044,1927.8,1927.1,1.90760402]
[1771524544162,1.75783044,1927.7,1926.9,1.90760402]
[1771524544502,1.75783044,1927.7,1927.0,1.90760402]
[1771524545487,1.29694957,1927.6,1927.0,1.90760402]
[1771524545793,3.05478001,1927.6,1927.0,1.90760402]
[1771524546714,1.29694957,1927.6,1927.1,1.7673044]
[1771524547985,5.18779829,1927.7,1927.1,1.7683044]
[1771524548788,7.03464811,1927.7,1927.1,1.7683044]
[1771524549088,1.84684982,1927.5,1927.1,0.001]
[1771524552371,1.29708415,1927.4,1927.1,0.001]
[1771524553029,5.18793097,1927.6,1927.1,1.7683044]
[1771524554212,1.84684982,1927.5,1927.0,0.001]
[1771524554447,1.29708415,1927.4,1927.0,0.001]
[1771524556337,3.14393397,1927.4,1927.0,0.001]
[1771524556747,7.03478022,1927.6,1927.0,1.7683044]
[1771524556927,1.84684982,1927.8,1927.1,1.7673044]
[1771524557108,3.14366484,1927.8,1927.1,1.7673044]
[1771524559242,1.84684982,1927.7,1927.1,1.7673044]
[1771524559434,1.84684982,1927.7,1927.0,1.7683044]
[1771524560056,1.84684982,1927.7,1927.0,0.001]
[1771524560336,1.29681502,1927.8,1927.0,0.001]
[1771524560337,1.84684982,1927.5,1927.0,0.001]
[1771524561526,1.29708415,1927.4,1927.0,0.001]
[1771524563624,1.84684982,1927.3,1927.0,0.001]
[1771524563925,1.29708415,1927.4,1927.0,0.001]
[1771524564450,3.14393397,1927.4,1927.0,0.001]
[1771524564614,1.84684982,1927.3,1927.0,0.001]
[1771524565014,1.84684982,1927.3,1926.7,0.001]
[1771524565656,1.84684982,1927.1,1926.7,0.001]
[1771524565853,1.29721876,1927.2,1926.7,1.7683044]
[1771524566066,0.0011,1927.4,1926.7,1.7683044]
[1771524567733,0.0011,1927.4,1926.9,1.7673044]
[1771524570043,0.0011,1927.4,1927.1,1.7673044]
[1771524572130,0.0011,1927.4,1927.3,1.7673044]
[1771524574257,1.29784775,1927.9,1927.2,1.29721838]
[1771524574462,8.2221689,1928.9,1927.2,1.29721838]
[1771524574463,1.84684982,1928.8,1927.5,1.7673044]
[1771524576238,3.14305208,1928.8,1927.7,1.7673044]
[1771524577748,1.84684982,1928.8,1927.7,1.7673044]
[1771524577945,3.14300301,1928.8,1927.7,1.7673044]
[1771524578469,0.0011,1928.7,1927.9,1.87205256]
[1771524580960,0.0011,1928.7,1928.1,1.87205256]
[1771524581260,1.79901434,1928.7,1928.1,1.87205256]
[1771524582971,3.09419143,1928.6,1928.0,1.87205256]
[1771524583559,1.79791434,1928.6,1928.0,1.87205256]
[1771524584077,0.0011,1928.7,1928.0,1.87205256]
[1771524586678,0.0011,1928.7,1928.2,1.87205256]
[1771524588849,0.0011,1928.7,1928.3,3.16853132]
[1771524589167,0.0011,1928.7,1928.4,1.87205256]
[1771524589748,0.0011,1928.8,1928.4,1.87205256]
[1771524590067,1.79791434,1928.7,1927.8,3.16886758]
[1771524590249,1.79791434,1928.7,1927.8,3.16884503]
[1771524590450,1.79791434,1928.7,1927.9,1.87205256]
[1771524591072,1.79791434,1928.5,1927.9,3.16874672]
[1771524591244,1.79791434,1928.5,1927.9,3.168794]
[1771524592268,0.0011,1928.8,1928.0,1.87205256]
[1771524592469,0.0011,1928.7,1928.0,1.87205256]
[1771524592842,1.79901434,1928.7,1928.0,1.87205256]
[1771524593048,1.79791434,1928.6,1928.1,1.29661324]
[1771524593744,0.0011,1928.7,1928.2,1.87205256]
[1771524594261,1.29731429,1928.7,1928.2,1.87205256]
[1771524594575,1.29731829,1928.7,1928.2,1.87205256]
[1771524595065,3.09523263,1928.7,1928.2,1.87205256]
[1771524595267,1.79901434,1928.7,1928.2,3.16858452]
[1771524598154,1.79901434,1928.7,1928.2,1.87205256]
[1771524598155,3.09524324,1928.7,1928.2,1.87205256]
[1771524598357,1.79791434,1928.6,1927.8,1.87205256]
[1771524599366,1.2963443,1928.5,1927.9,3.16880031]
[1771524599771,3.09425864,1928.5,1927.9,3.16880031]
[1771524599973,1.79791434,1928.4,1927.6,0.935]
[1771524600979,1.79791434,1928.4,1927.6,0.001]
[1771524601153,9.28906733,1928.5,1927.6,0.001]
[1771524601154,1.76568108,1928.2,1927.6,0.001]
[1771524601556,1.76568108,1928.0,1927.6,0.001]
[1771524602152,1.76568108,1928.2,1927.6,0.001]
[1771524602356,1.76568108,1928.2,1925.1,0.003]
[1771524602357,1.76568108,1926.8,1925.1,0.003]
[1771524602581,0.26877624,1927.0,1924.9,0.001]
[1771524602582,0.25041747,1925.2,1924.9,0.001]
[1771524602760,5.77039602,1925.5,1924.9,0.001]
[1771524603350,3.0425071,1925.4,1924.9,0.001]
[1771524603681,3.0425071,1925.3,1924.9,0.001]
[1771524604253,3.0425071,1925.3,1924.5,1.79982692]
[1771524604254,1.76568108,1925.2,1924.2,3.09902418]
[1771524604763,3.03073777,1925.1,1924.2,3.09902418]
[1771524605174,1.76568108,1925.2,1924.2,3.09902418]
[1771524605681,3.06431491,1925.1,1924.2,3.09906166]
[1771524605881,1.76568108,1925.1,1924.2,3.09906166]
[1771524606757,1.76568108,1925.1,1924.3,0.001]
[1771524607778,1.76568108,1925.1,1924.3,2.36583664]
[1771524608178,3.56226442,1925.2,1924.3,2.36583664]
[1771524608502,2.26365229,1925.1,1924.3,2.36583664]
[1771524609872,1.29870129,1925.0,1924.3,2.36583664]
[1771524610072,3.56235358,1925.0,1924.3,0.001]
[1771524610473,1.29841393,1925.5,1924.4,2.36483664]
[1771524611458,1.29831344,1925.6,1924.4,2.36483664]
[1771524611886,3.56196573,1925.6,1924.6,2.36483664]
[1771524613789,2.26365229,1925.6,1924.6,2.36483664]
[1771524613993,2.26365229,1925.8,1924.8,2.36483664]
[1771524614200,5.19162528,1926.3,1924.8,2.36483664]
[1771524614201,7.45495167,1926.4,1924.8,2.36483664]